fUSD/lending_fUSD_20260311
["ID","MTS","AMOUNT","RATE_DAILY","PERIOD"]
[408200930,1773222441172,-1004280.56928384,0.00047457,120]
[408200931,1773222441197,-28137.0,0.00047457,120]
[408200932,1773222441222,-500.0,0.00047457,120]
[408200933,1773222441246,-394.96031488,0.00047457,120]
[408200934,1773222441274,-500.0,0.00047457,120]
[408200935,1773222441299,-500.0,0.00047457,120]
[408200936,1773222441457,-593.68784992,0.00047457,120]
[408200937,1773222441484,-500.0,0.00047457,120]
[408200938,1773222441511,-330.81061772,0.00047457,120]
[408200939,1773222441538,-500.0,0.00047457,120]
[408200940,1773222441563,-500.0,0.00047457,120]
[408200941,1773222441588,-500.0,0.00047457,120]
[408200942,1773222441613,-500.0,0.00047457,120]
[408200943,1773222441643,-500.0,0.00047457,120]
[408200944,1773222441667,-500.0,0.00047457,120]
[408200945,1773222441692,-500.0,0.00047457,120]
[408200946,1773222441717,-500.0,0.00047457,120]
[408200947,1773222441744,-500.0,0.00047457,120]
[408200948,1773222441774,-500.0,0.00047457,120]
[408200949,1773222441802,-500.0,0.00047457,120]
[408200950,1773222441828,-500.0,0.00047457,120]
[408200951,1773222441855,-500.0,0.00047457,120]
[408200952,1773222441882,-500.0,0.00047457,120]
[408200953,1773222441907,-500.0,0.00047457,120]
[408200954,1773222441932,-500.0,0.00047457,120]
[408200955,1773222441959,-500.0,0.00047457,120]
[408200956,1773222441984,-500.0,0.00047457,120]
[408200957,1773222442011,-535.1857108,0.00047457,120]
[408200958,1773222442037,-1332.18708999,0.00047457,120]
[408200959,1773222442062,-985.81,0.00047457,120]
[408200960,1773222442088,-985.81,0.00047457,120]
[408200961,1773222442115,-985.81,0.00047457,120]
[408200962,1773222442141,-985.81,0.00047457,120]
[408200963,1773222442168,-985.81,0.00047457,120]
[408200964,1773222442193,-985.81,0.00047457,120]
[408200965,1773222442219,-985.81,0.00047457,120]
[408200966,1773222442244,-985.81,0.00047457,120]
[408200967,1773222442269,-985.81,0.00047457,120]
[408200968,1773222442295,-985.81,0.00047457,120]
[408200969,1773222442321,-985.81,0.00047457,120]
[408200970,1773222442346,-985.81,0.00047457,120]
[408200971,1773222442371,-985.81,0.00047457,120]
[408200972,1773222442396,-985.81,0.00047457,120]
[408200973,1773222442422,-985.81,0.00047457,120]
[408200974,1773222442447,-985.81,0.00047457,120]
[408200975,1773222442472,-985.81,0.00047457,120]
[408200976,1773222442497,-985.81,0.00047457,120]
[408200977,1773222442524,-985.81,0.00047457,120]
[408200978,1773222442551,-985.81,0.00047457,120]
[408200979,1773222442575,-985.81,0.00047457,120]
[408200980,1773222442600,-985.81,0.00047457,120]
[408200981,1773222442624,-985.81,0.00047457,120]
[408200982,1773222442650,-985.88478755,0.00047457,120]
[408200983,1773222442686,-305.19,0.00047457,120]
[408200984,1773222442719,-305.19,0.00047457,120]
[408200985,1773222442745,-305.19,0.00047457,120]
[408200986,1773222442773,-305.19,0.00047457,120]
[408200987,1773222442799,-305.19,0.00047457,120]
[408200988,1773222442827,-305.19,0.00047457,120]
[408200989,1773222442852,-305.19,0.00047457,120]
[408200990,1773222442876,-305.19,0.00047457,120]
[408200991,1773222442901,-305.19,0.00047457,120]
[408200992,1773222442925,-736.54,0.00047457,120]
[408200993,1773222442950,-736.54,0.00047457,120]
[408200994,1773222442975,-736.54,0.00047457,120]
[408200995,1773222443000,-736.54,0.00047457,120]
[408200996,1773222443025,-736.54,0.00047457,120]
[408200997,1773222443051,-736.54,0.00047457,120]
[408200998,1773222443077,-736.54,0.00047457,120]
[408200999,1773222443103,-736.54,0.00047457,120]
[408201000,1773222443128,-736.54,0.00047457,120]
[408201001,1773222443153,-736.54,0.00047457,120]
[408201002,1773222443179,-736.54,0.00047457,120]
[408201003,1773222443204,-736.54,0.00047457,120]
[408201004,1773222443228,-736.54,0.00047457,120]
[408201005,1773222443253,-736.54,0.00047457,120]
[408201006,1773222443278,-736.54,0.00047457,120]
[408201007,1773222443303,-736.54,0.00047457,120]
[408201008,1773222443328,-736.54,0.00047457,120]
[408201009,1773222443354,-736.54,0.00047457,120]
[408201010,1773222443380,-736.54,0.00047457,120]
[408201011,1773222443405,-736.54,0.00047457,120]
[408201012,1773222443432,-736.54,0.00047457,120]
[408201013,1773222443459,-736.54,0.00047457,120]
[408201014,1773222443485,-736.54,0.00047457,120]
[408201015,1773222443511,-736.63995043,0.00047457,120]
[408201016,1773222443538,-15547.0,0.00047457,30]
[408201017,1773222443564,-30778.0,0.00047457,60]
[408201018,1773222443589,-1843.12321938,0.00047457,90]
[408201019,1773222443614,-2541.53016724,0.00047457,30]
[408201020,1773222443640,-3060.43540851,0.00047457,30]
[408201021,1773222443665,-2970.64590744,0.00047457,65]
[408201022,1773222443690,-2385.56139466,0.00047457,120]
[408201023,1773222443715,-165.24899142,0.00047457,66]
[408201024,1773222443740,-259.0,0.00047457,120]
[408201025,1773222443771,-3000.0,0.00047457,120]
[408201026,1773222443797,-3000.0,0.00047457,120]
[408201027,1773222443824,-5000.0,0.00047457,120]
[408201028,1773222443851,-18532.99,0.00047457,30]
[408201029,1773222443875,-1990.75222793,0.00047457,120]
[408201030,1773222443900,-960.4832867,0.00047457,120]
[408201031,1773222443924,-2613.02,0.00047457,120]
[408201032,1773222443949,-150.0,0.00047457,120]
[408201033,1773222443973,-1000.0,0.00047457,120]
[408201034,1773222443999,-3309.17014478,0.00047457,120]
[408201035,1773222444025,-32140.0,0.00047457,120]
[408201036,1773222444050,-321.09,0.00047457,120]
[408201037,1773222444076,-321.09,0.00047457,120]
[408201038,1773222444103,-321.09,0.00047457,120]
[408201039,1773222444129,-321.09,0.00047457,120]
[408201040,1773222444154,-321.09,0.00047457,120]
[408201041,1773222444312,-321.09,0.00047457,120]
[408201042,1773222444339,-321.09,0.00047457,120]
[408201043,1773222444366,-321.09,0.00047457,120]
[408201044,1773222444393,-321.09,0.00047457,120]
[408201045,1773222444420,-321.09,0.00047457,120]
[408201046,1773222444448,-321.09,0.00047457,120]
[408201047,1773222444475,-321.09,0.00047457,120]
[408201048,1773222444501,-321.09,0.00047457,120]
[408201049,1773222444527,-321.09,0.00047457,120]
[408201050,1773222444553,-321.09,0.00047457,120]
[408201051,1773222444579,-321.09,0.00047457,120]
[408201052,1773222444603,-321.09,0.00047457,120]
[408201053,1773222444628,-321.09,0.00047457,120]
[408201054,1773222444653,-321.09,0.00047457,120]
[408201055,1773222444679,-321.09,0.00047457,120]
[408201056,1773222444705,-321.09,0.00047457,120]
[408201057,1773222444731,-321.09,0.00047457,120]
[408201058,1773222444760,-321.09,0.00047457,120]
[408201059,1773222444788,-321.3,0.00047457,120]
[408201060,1773222444816,-40000.0,0.00047457,120]
[408201061,1773222444846,-9980.27452322,0.00047457,30]
[408201062,1773222444872,-1000.0,0.00047457,120]
[408201063,1773222444898,-1004.09,0.00047457,120]
[408201064,1773222444924,-281.24517366,0.00047457,120]
[408201065,1773222444950,-285.61,0.00047457,30]
[408201066,1773222444975,-348.719112,0.00047457,120]
[408201067,1773222445002,-15600.870283,0.00047457,120]
[408201068,1773222445029,-200.0,0.00047457,120]
[408201069,1773222445541,400.0,0.00047457,90]
[408201070,1773222446054,428.54936584,0.00047457,90]
[408201072,1773222464205,1389.97,0.00047457,30]
[408201074,1773222476955,151.0,0.00047457,60]
[408201075,1773222487121,250.0,0.00047457,120]
[408201076,1773222487656,250.0,0.00047457,120]
[408201077,1773222487744,3000.0,0.00047457,120]
[408201078,1773222488098,151.79529868,0.00047457,120]
[408201079,1773222488132,520.0,0.00047457,120]
[408201080,1773222488282,250.0,0.00047457,120]
[408201081,1773222488346,3000.0,0.00047457,120]
[408201082,1773222488924,250.0,0.00047457,120]
[408201083,1773222488994,3000.0,0.00047457,120]
[408201084,1773222489596,3000.0,0.00047457,120]
[408201085,1773222489662,250.0,0.00047457,120]
[408201086,1773222490208,3000.0,0.00047457,120]
[408201087,1773222490306,250.0,0.00047457,120]
[408201088,1773222490547,500.0,0.00047457,120]
[408201089,1773222490617,151.0,0.00047457,120]
[408201090,1773222490819,3000.0,0.00047457,120]
[408201091,1773222490884,250.0,0.00047457,120]
[408201092,1773222491152,500.0,0.00047457,120]
[408201093,1773222491222,156.587,0.00047457,120]
[408201094,1773222491417,3000.0,0.00047457,120]
[408201095,1773222491448,250.0,0.00047457,120]
[408201096,1773222491528,250.0,0.00047457,120]
[408201097,1773222491676,1500.0,0.00047457,120]
[408201098,1773222491756,500.0,0.00047457,120]
[408201099,1773222491879,162.380719,0.00047457,120]
[408201100,1773222492022,3000.0,0.00047457,120]
[408201101,1773222492055,250.0,0.00047457,120]
[408201102,1773222492287,1500.0,0.00047457,120]
[408201103,1773222492427,500.0,0.00047457,120]
[408201104,1773222492498,168.3888056,0.00047457,120]
[408201105,1773222492532,151.0,0.00047457,120]
[408201106,1773222492698,250.0,0.00047457,120]
[408201107,1773222492888,1500.0,0.00047457,120]
[408201108,1773222493036,500.0,0.00047457,120]
[408201109,1773222493142,174.61919141,0.00047457,120]
[408201110,1773222493174,151.0,0.00047457,120]
[408201111,1773222493329,250.0,0.00047457,120]
[408201112,1773222493523,1500.0,0.00047457,120]
[408201113,1773222493556,8000.0,0.00047457,120]
[408201114,1773222493764,151.0,0.00047457,120]
[408201115,1773222493797,174.61919141,0.00047457,120]
[408201116,1773222493959,250.0,0.00047457,120]
[408201117,1773222494141,1500.0,0.00047457,120]
[408201118,1773222494456,500.0,0.00047457,120]
[408201119,1773222494585,250.0,0.00047457,120]
[408201120,1773222494898,151.0,0.00047457,120]
[408201121,1773222495192,250.0,0.00047457,120]
[408201122,1773222495773,151.0,0.00047457,120]
[408201123,1773222495832,250.0,0.00047457,120]
[408201124,1773222496185,151.0,0.00047457,120]
[408201125,1773222496821,151.0,0.00047457,120]
[408201126,1773222496852,1269.19948039,0.00047457,120]
[408201127,1773222497443,151.0,0.00047457,120]
[408201128,1773222497858,500.0,0.00047457,120]
[408201129,1773222497981,500.0,0.00047457,120]
[408201130,1773222498405,1500.0,0.00047457,120]
[408201131,1773222498608,500.0,0.00047457,120]
[408201132,1773222498899,3000.0,0.00047457,120]
[408201133,1773222499098,1500.0,0.00047457,120]
[408201134,1773222499279,500.0,0.00047457,120]
[408201135,1773222499515,3000.0,0.00047457,120]
[408201136,1773222499690,1500.0,0.00047457,120]
[408201137,1773222499876,283.17962537,0.00047457,120]
[408201138,1773222500026,500.0,0.00047457,120]
[408201139,1773222500115,3000.0,0.00047457,120]
[408201140,1773222500498,620.0,0.00047457,120]
[408201141,1773222500708,3000.0,0.00047457,120]
[408201142,1773222501004,3000.0,0.00047457,120]
[408201143,1773222501358,3000.0,0.00047457,120]
[408201144,1773222501612,3000.0,0.00047457,120]
[408201145,1773222501894,500.0,0.00047457,120]
[408201146,1773222501981,3000.0,0.00047457,120]
[408201147,1773222502510,518.5,0.00047457,120]
[408201148,1773222502544,500.0,0.00047457,120]
[408201149,1773222502620,3000.0,0.00047457,120]
[408201150,1773222502910,500.0,0.00047457,120]
[408201151,1773222503140,500.0,0.00047457,120]
[408201152,1773222503172,537.6845,0.00047457,120]
[408201153,1773222503244,3000.0,0.00047457,120]
[408201154,1773222503743,500.0,0.00047457,120]
[408201155,1773222503777,557.5788265,0.00047457,120]
[408201156,1773222503863,3000.0,0.00047457,120]
[408201157,1773222504317,500.0,0.00047457,120]
[408201158,1773222504349,500.0,0.00047457,120]
[408201159,1773222504379,578.20924308,0.00047457,120]
[408201160,1773222504465,3000.0,0.00047457,120]
[408201161,1773222504961,599.60298507,0.00047457,120]
[408201162,1773222505086,3000.0,0.00047457,120]
[408201164,1773222505576,621.78829552,0.00047457,120]
[408201165,1773222505711,3000.0,0.00047457,120]
[408201166,1773222506187,644.79446246,0.00047457,120]
[408201167,1773222506329,3000.0,0.00047457,120]
[408201168,1773222506807,668.65185757,0.00047457,120]
[408201169,1773222506920,3000.0,0.00047457,120]
[408201170,1773222507450,693.3919763,0.00047457,120]
[408201171,1773222507479,1500.0,0.00047457,120]
[408201172,1773222507508,500.0,0.00047457,120]
[408201173,1773222507538,3000.0,0.00047457,120]
[408201174,1773222508021,719.04747942,0.00047457,120]
[408201175,1773222508056,1500.0,0.00047457,120]
[408201176,1773222508087,500.0,0.00047457,120]
[408201177,1773222508128,3000.0,0.00047457,120]
[408201178,1773222508361,10000.0,0.00047457,120]
[408201179,1773222508772,745.65223616,0.00047457,120]
[408201180,1773222508807,1500.0,0.00047457,120]
[408201181,1773222508837,500.0,0.00047457,120]
[408201182,1773222508869,3000.0,0.00047457,120]
[408201183,1773222508964,10000.0,0.00047457,120]
[408201184,1773222509245,773.2413689,0.00047457,120]
[408201185,1773222509278,500.0,0.00047457,120]
[408201186,1773222509340,3000.0,0.00047457,120]
[408201187,1773222509370,1500.0,0.00047457,120]
[408201188,1773222509588,10000.0,0.00047457,120]
[408201189,1773222509781,500.0,0.00047457,120]
[408201190,1773222509840,801.85129955,0.00047457,120]
[408201191,1773222509870,500.0,0.00047457,120]
[408201192,1773222509956,1500.0,0.00047457,120]
[408201193,1773222509984,3000.0,0.00047457,120]
[408201194,1773222510210,10000.0,0.00047457,120]
[408201195,1773222510410,500.0,0.00047457,120]
[408201196,1773222510455,831.51979763,0.00047457,120]
[408201197,1773222510491,500.0,0.00047457,120]
[408201198,1773222510558,3000.0,0.00047457,120]
[408201199,1773222510593,1500.0,0.00047457,120]
[408201200,1773222510814,10000.0,0.00047457,120]
[408201201,1773222511023,500.0,0.00047457,120]
[408201202,1773222511099,500.0,0.00047457,120]
[408201203,1773222511211,1500.0,0.00047457,120]
[408201204,1773222511421,10000.0,0.00047457,120]
[408201205,1773222511453,170.0,0.00047457,120]
[408201206,1773222511680,500.0,0.00047457,120]
[408201207,1773222511720,500.0,0.00047457,120]
[408201208,1773222511795,1500.0,0.00047457,120]
[408201209,1773222512015,10000.0,0.00047457,120]
[408201210,1773222512050,176.29,0.00047457,120]
[408201211,1773222512311,500.0,0.00047457,120]
[408201212,1773222512628,10000.0,0.00047457,120]
[408201213,1773222512692,182.81273,0.00047457,120]
[408201214,1773222512946,500.0,0.00047457,120]
[408201215,1773222513321,189.57680101,0.00047457,120]
[408201216,1773222513539,500.0,0.00047457,120]
[408201217,1773222513579,500.0,0.00047457,120]
[408201218,1773222513933,196.59114265,0.00047457,120]
[408201219,1773222514145,500.0,0.00047457,120]
[408201220,1773222514176,500.0,0.00047457,120]
[408201221,1773222514534,203.86501493,0.00047457,120]
[408201222,1773222515177,211.40802048,0.00047457,120]
[408201223,1773222516264,219.23011724,0.00047457,120]
[408201224,1773222516881,227.34163157,0.00047457,120]
[408201225,1773222517604,227.34163157,0.00047457,120]
[408201226,1773222520190,1030.0,0.00047457,120]
[408201227,1773222520249,251.0,0.00047457,120]
[408201228,1773222520815,1068.11,0.00047457,120]
[408201229,1773222520912,260.287,0.00047457,120]
[408201230,1773222521182,151.0,0.00047457,120]
[408201231,1773222521459,1107.63007,0.00047457,120]
[408201232,1773222521517,260.287,0.00047457,120]
[408201233,1773222521778,151.0,0.00047457,120]
[408201234,1773222522069,1148.61238259,0.00047457,120]
[408201235,1773222522396,151.0,0.00047457,120]
[408201236,1773222523061,151.0,0.00047457,120]
[408201237,1773222523182,1191.11104075,0.00047457,120]
[408201238,1773222523852,1235.18214925,0.00047457,120]
[408201239,1773222523942,151.0,0.00047457,120]
[408201240,1773222524488,1280.88388878,0.00047457,120]
[408201241,1773222524567,151.0,0.00047457,120]
[408201242,1773222524605,200.0,0.00047457,120]
[408201243,1773222525095,1328.27659266,0.00047457,120]
[408201244,1773222525231,151.0,0.00047457,120]
[408201245,1773222525262,200.0,0.00047457,120]
[408201246,1773222525735,1328.27659266,0.00047457,120]
[408201247,1773222525852,151.0,0.00047457,120]
[408201248,1773222528960,151.0,0.00047457,120]
[408201249,1773222530112,151.0,0.00047457,120]
[408201250,1773222530399,169.05,9.451e-05,2]
[408201251,1773222530614,169.05,9.949e-05,2]
[408201252,1773222530852,169.05,0.00010446,2]
[408201253,1773222531118,169.05,0.00010943,2]
[408201254,1773222531326,169.05,0.00011441,2]
[408201255,1773222531521,169.05,0.00011938,2]
[408201256,1773222531711,169.05,0.00012436,2]
[408201257,1773222531907,169.05,0.00012933,2]
[408201258,1773222532116,169.05,0.00013431,2]
[408201259,1773222532321,169.05,0.00013928,2]
[408201260,1773222532523,169.05,0.00014425,2]
[408201261,1773222532719,169.05,0.00014923,2]
[408201263,1773222549065,213.87355592,0.00047457,120]
[408201264,1773222551765,200.0,0.00047457,120]
[408201265,1773222551981,1916.99394048,0.00047457,120]
[408201266,1773222554072,474.47504461,0.00047457,120]
[408201267,1773222555122,724.13574083,0.00047457,120]
[408201268,1773222558104,-169.05,0.0001542,2]
[408201269,1773222558126,-169.05,0.00015918,2]
[408201270,1773222558147,-943.03,0.00016162,2]
[408201271,1773222558167,-169.05,0.00016415,2]
[408201272,1773222558187,-2500.0,0.00016805,2]
[408201273,1773222558207,-275.76954708,0.00016902,2]
[408201274,1773222558228,-169.05,0.00016912,2]
[408201275,1773222558257,-504.0,0.00017,2]
[408201276,1773222558280,-602.12431892,0.00017393,2]
[408201277,1773222560021,504.83776616,0.00047457,120]
[408201278,1773222560752,260.62460582,0.00047457,120]
[408201279,1773222560790,222.17207551,0.00047457,120]
[408201282,1773222625171,151.42631785,0.00047457,120]
[408201292,1773222632287,-297.0,0.00017393,2]
[408201293,1773222632296,-136.442,0.0001741,2]
[408201294,1773222632308,-32.608,0.0001741,2]
[408201295,1773222632318,-372.62347994,0.00017561,2]
[408201296,1773222632393,-3217.02441588,0.00017561,2]
[408201297,1773222632403,-187.444934,0.0001767,7]
[408201298,1773222632412,-169.05,0.00017907,2]
[408201299,1773222632422,-412.0,0.00018298,2]
[408201300,1773222632431,-2000.0,0.00018299,2]
[408201301,1773222632442,-169.05,0.00018405,2]
[408201303,1773222632451,-305.77,0.00018479,2]
[408201305,1773222632461,-293.64350226,0.00018599,2]
[408201306,1773222632471,-293.64350225,0.00018599,2]
[408201307,1773222632482,-293.08042332,0.000186,2]
[408201308,1773222632495,-0.56307893,0.000186,2]
[408201309,1773222632504,-293.64350225,0.000186,2]
[408201310,1773222632514,-150.0,0.00018684,2]
[408201311,1773222632524,-500.0,0.000188,2]
[408201312,1773222632535,-1000.0,0.00018855,2]
[408201313,1773222632546,-1878.27983766,0.0001887,2]
[408201314,1773222632555,-169.05,0.00018902,2]
[408201316,1773222632564,-296.32,0.00018902,2]
[408201317,1773222632573,-2000.0,0.00018902,2]
[408201318,1773222632583,-200.0,0.00018902,2]
[408201319,1773222632592,-305.77,0.00018941,2]
[408201320,1773222632601,-652.0,0.00018964,2]
[408201321,1773222632614,-200.0,0.00018978,2]
[408201322,1773222632624,-371.0,0.0001905,2]
[408201323,1773222632635,-250.0,0.00019132,2]
[408201324,1773222632644,-2621.43,0.00019132,2]
[408201325,1773222632654,-600.0,0.00019132,2]
[408201326,1773222632664,-1874.0,0.000192,2]
[408201327,1773222632674,-944.19888139,0.00019254,2]
[408201328,1773222632684,-305.77,0.00019403,2]
[408201329,1773222632694,-281.36705813,0.00019499,2]
[408201330,1773222632704,-150.0,0.00019526,2]
[408201331,1773222632714,-150.0,0.00019526,2]
[408201332,1773222632724,-2500.0,0.00019611,2]
[408201333,1773222632734,-5415.17201823,0.00019616,2]
[408201334,1773222632744,-160.0,0.00019621,2]
[408201335,1773222632755,-150.0,0.00019626,2]
[408201336,1773222632764,-150.0,0.00019626,2]
[408201337,1773222632774,-150.0,0.00019626,2]
[408201338,1773222632783,-150.0,0.00019626,2]
[408201339,1773222632792,-500.0,0.00019626,2]
[408201340,1773222632802,-150.0,0.00019626,2]
[408201341,1773222632814,-150.84360211,0.00019626,2]
[408201342,1773222632823,-150.0,0.00019626,2]
[408201343,1773222632832,-150.0,0.00019626,2]
[408201344,1773222632841,-500.0,0.00019626,2]
[408201345,1773222632851,-23435.157881,0.00019681,2]
[408201346,1773222632863,-30622.15292589,0.00019681,2]
[408201347,1773222632875,-3693.26537011,0.00019681,2]
[408201348,1773222632884,-150.0,0.00019681,2]
[408201349,1773222632894,-150.0,0.00019681,2]
[408201350,1773222632902,-512.63986513,0.00019681,2]
[408201351,1773222632911,-150.0,0.00019681,2]
[408201352,1773222632920,-508.22060755,0.00019681,2]
[408201353,1773222632929,-80519.11734649,0.00019711,2]
[408201356,1773222638356,-1343.44849106,0.00019711,2]
[408201357,1773222638368,-27923.71386245,0.00019711,2]
[408201358,1773222638377,-287.73245241,0.00019716,2]
[408201359,1773222638387,-1885.678,0.00019751,2]
[408201360,1773222638396,-500.0,0.00019773,2]
[408201361,1773222638405,-1467.5376,0.000198,2]
[408201362,1773222638415,-1467.5376,0.000198,2]
[408201363,1773222638424,-1467.53759,0.000198,2]
[408201364,1773222638436,-1467.5376,0.000198,2]
[408201365,1773222638445,-305.77,0.00019865,2]
[408201366,1773222638455,-200.0,0.0001989,2]
[408201367,1773222638463,-838.71396936,0.000199,2]
[408201368,1773222638473,-1470.3559598,0.000199,2]
[408201369,1773222638482,-2998.41587328,0.000199,2]
[408201370,1773222638491,-296.98389022,0.000199,2]
[408201371,1773222638501,-570.86,0.00019902,2]
[408201372,1773222638511,-296.98389022,0.00019973,2]
[408201373,1773222638520,-326.7545929,0.00019973,2]
[408201374,1773222638530,-500.0,0.00019973,2]
[408201375,1773222638539,-303.73566577,0.0001999,2]
[408201376,1773222638549,-151.0,0.00019997,2]
[408201377,1773222638558,-500.0,0.00019999,2]
[408201378,1773222638567,-244.62962949,0.00019999,2]
[408201379,1773222638576,-500.0,0.00019999,2]
[408201380,1773222638585,-500.0,0.00019999,2]
[408201381,1773222638595,-500.0,0.00019999,2]
[408201382,1773222638604,-500.0,0.00019999,2]
[408201383,1773222638613,-500.0,0.00019999,2]
[408201384,1773222638622,-500.0,0.00019999,2]
[408201385,1773222638631,-500.0,0.00019999,2]
[408201386,1773222638641,-500.0,0.00019999,2]
[408201387,1773222638650,-500.0,0.00019999,2]
[408201388,1773222638659,-500.0,0.00019999,2]
[408201389,1773222638669,-500.0,0.00019999,2]
[408201390,1773222638679,-500.0,0.00019999,2]
[408201391,1773222638688,-500.0,0.00019999,2]
[408201392,1773222638697,-500.0,0.00019999,2]
[408201393,1773222638707,-500.0,0.00019999,2]
[408201394,1773222638716,-500.0,0.00019999,2]
[408201395,1773222638725,-500.0,0.00019999,2]
[408201396,1773222638735,-500.0,0.00019999,2]
[408201397,1773222638745,-500.0,0.00019999,2]
[408201398,1773222638755,-500.0,0.00019999,2]
[408201399,1773222638764,-500.0,0.00019999,2]
[408201400,1773222638774,-500.0,0.00019999,2]
[408201401,1773222638783,-500.0,0.00019999,2]
[408201402,1773222638792,-500.0,0.00019999,2]
[408201403,1773222638803,-500.0,0.00019999,2]
[408201404,1773222638816,-500.0,0.00019999,2]
[408201405,1773222638825,-500.0,0.00019999,2]
[408201406,1773222638838,-523.54763743,0.00019999,2]
[408201408,1773222638849,-500.0,0.00019999,2]
[408201410,1773222638858,-500.0,0.00019999,2]
[408201412,1773222638867,-500.0,0.00019999,2]
[408201414,1773222638879,-165.66267916,0.00019999,2]
[408201416,1773222638888,-500.0,0.00019999,2]
[408201418,1773222638897,-500.0,0.00019999,2]
[408201420,1773222638906,-500.0,0.00019999,2]
[408201422,1773222638915,-500.0,0.00019999,2]
[408201424,1773222638925,-500.0,0.00019999,2]
[408201426,1773222638934,-500.0,0.00019999,2]
[408201428,1773222638944,-500.0,0.00019999,2]
[408201429,1773222638953,-500.0,0.00019999,2]
[408201430,1773222638963,-400.0,0.00019999,2]
[408201431,1773222638972,-500.0,0.00019999,2]
[408201432,1773222638981,-500.0,0.00019999,2]
[408201433,1773222638991,-423.85993382,0.00019999,2]
[408201434,1773222639000,-500.0,0.00019999,2]
[408201435,1773222639009,-500.0,0.00019999,2]
[408201436,1773222639019,-500.0,0.00019999,2]
[408201437,1773222639253,-485.32992184,0.00019999,2]
[408201438,1773222639266,-156.65640271,0.00019999,2]
[408201439,1773222639277,-2583.0,0.0002,2]
[408201440,1773222639286,-2058.0,0.0002,2]
[408201441,1773222639295,-406984.96871372,0.0002,2]
[408201455,1773222646241,-1568.0,0.0002,2]
[408201456,1773222646292,-13919.10102746,0.0002,2]
[408201457,1773222646454,-879.67159101,0.0002,2]
[408201463,1773222652725,187.96,0.00047457,30]
[408201464,1773222668882,1500.0,0.00047457,120]
[408201467,1773222745867,500.0,0.00047457,120]
[408201469,1773222789179,578.20924308,0.00047457,120]
[408201470,1773222790139,1500.0,0.00047457,120]
[408201473,1773222849878,1500.0,0.00047457,120]
[408201474,1773222850476,2696.70056892,0.00047457,120]
[408201475,1773222850510,1500.0,0.00047457,120]
[408201476,1773222851133,1500.0,0.00047457,120]
[408201477,1773222851798,1500.0,0.00047457,120]
[408201480,1773222911305,372.02394941,0.00047457,120]
[408201481,1773222914799,252.67364713,0.00047457,120]
[408201482,1773222917389,6958.98682745,0.00047457,120]
[408201483,1773222917734,151.0,0.00047457,120]
[408201484,1773222939279,510.67,0.00047457,60]
[408201485,1773222939516,510.67,0.00047457,60]